Cogmind - Beta 13 @@@ ROGUE MODE // 2024.03.25 @ 19:30:20 Player: f_ Result: Self-destructed Performance ------------- Evolutions (2) 1000 Regions Visited (7) 1400 Robots Destroyed (86) 430 Value Destroyed (1596) 1596 Prototype IDs (10) 200 Alien Tech Used (0) 0 Bonus (519) 519 TOTAL SCORE: 5145 Bonus ------- High Alert Combat Kills 19 Follower Combat Kills 245 Aligned with FarCom 300 Friendly Fire -45 Cogmind --------- Core Integrity 171/550 Matter 32/300 Energy 14/100 System Corruption 9% Temperature Cool (0) Movement Core (50) Location -8/Materials Parts ------- > --- POWER (1) -------- (None) > --- PROPULSION (2) --- (None) > --- UTILITY (6) ------ Modified TNC Utility Shielding > --- WEAPON (2) ------- (None) > --- INVENTORY (5) ---- Improved Terrain Scan Processor XL Autogun Array Peak State ------------ > --- POWER ------------ Light Ion Engine > --- PROPULSION ------- Wheel Wheel > --- UTILITY ---------- Humpback Experimental Sensor Array Modified TNC Trap Reconfigurator Sensor Drone Bay > --- WEAPON ----------- Heavy EM Pulse Gun Improved Medium Laser > --- INVENTORY -------- Light Ion Engine Light Ion Engine High-capacity Storage Unit Medium Matter Pod Signal Interpreter Improved Terrain Scan Processor Core Shielding Power Shielding Utility Shielding Medium Armor Plating Hardened Light Armor Plating Hardened Light Armor Plating Particle Gun XL Autogun Array Datajack [Rating: 47] Favorites ----------- Power Light Ion Engine Engine Light Ion Engine Power Core Light Nuclear Core Propulsion Wheel Wheel Wheel Hover Unit Improved Hover Unit Utility Modified TNC Device Sensor Drone Bay Storage Large Storage Unit Processor Modified TNC Protection Utility Shielding Weapon Improved Medium Laser Energy Gun Improved Medium Laser Ballistic Gun Enhanced Autogun Launcher Rocket Launcher Slashing Weapon Katana Build | -11 -10 -10 -9 -9 -9 -8 -8 ------- Run | Yrd Mat Min Mat Min Exi Min Mat Slots Evolved 4 | . . . 2 . . . 2 Power . | . . . . . . . . Propulsion . | . . . . . . . . Utility 4 | . . . 2 . . . 2 Weapon . | . . . . . . . . Parts Attached 89 | 6 10 3 11 12 3 14 30 Power 7 | 1 . . 2 1 . 1 2 Engine 6 | 1 . . 2 1 . 1 1 Core 1 | . . . . . . . 1 Reactor . | . . . . . . . . Propulsion 15 | 2 4 . 2 3 . 1 3 Treads . | . . . . . . . . Leg . | . . . . . . . . Wheel 14 | 2 4 . 2 3 . 1 2 Hover 1 | . . . . . . . 1 Flight . | . . . . . . . . Utility 39 | 1 3 1 4 4 3 11 12 Device 16 | . 1 . 2 1 1 6 5 Storage 3 | 1 1 . . . 1 . . Processor 3 | . 1 1 . . 1 . . Hackware . | . . . . . . . . Protection 17 | . . . 2 3 . 5 7 Artifact . | . . . . . . . . Weapon 28 | 2 3 2 3 4 . 1 13 Energy Gun 9 | 2 1 1 1 1 . 1 2 Energy Cannon . | . . . . . . . . Ballistic Gun 7 | . 1 . 1 2 . . 3 Ballistic Cannon . | . . . . . . . . Launcher 10 | . 1 1 1 1 . . 6 Special Weapon . | . . . . . . . . Impact Weapon . | . . . . . . . . Slashing Weapon 2 | . . . . . . . 2 Piercing Weapon . | . . . . . . . . Special Melee Weapon . | . . . . . . . . Unidentified Prototypes 8 | . . . 3 1 2 . 2 Corrupted Parts 1 | . . . . . . . 1 System Corruption 9 | . . . . . . . 9 Parts Lost 30 | . . . 1 6 . 3 20 Power 5 | . . . 1 1 . 1 2 Propulsion 7 | . . . . 2 . 1 4 Utility 8 | . . . . . . . 8 Weapon 10 | . . . . 3 . 1 6 Highest Loss Streak 13 | . . . 1 6 . 1 13 To Critical Strikes . | . . . . . . . . Average Slot Usage (%) 84 | . 98 99 97 91 93 85 62 Engine 9 | . 14 14 8 10 11 10 2 Core 1 | . . . . . . . 5 Wheel 19 | . 28 28 22 16 22 21 11 Device 5 | . 6 . 11 19 5 7 2 Storage 9 | . 14 14 11 11 11 11 2 Processor 11 | . 6 14 11 11 18 11 9 Protection 6 | . . . 10 2 2 3 16 Energy Gun 11 | . 14 13 11 8 11 20 3 Ballistic Gun 3 | . 3 . 1 3 11 . 6 Launcher 5 | . 10 14 9 7 . . 1 Naked Turns . | . . . . . . . . Heaviest Build 241 | 13 30 32 41 50 209 223 241 Greatest Support 22 | 20 20 20 20 20 20 20 22 Greatest Overweight (x) 22 | . 1 1 2 13 10 22 17 Average Overweight (x) 2 | . . 1 1 2 3 11 3 Largest Inventory Capacity 35 | 8 15 15 15 15 35 35 35 Average Capacity 19 | 7 12 15 15 15 24 35 13 Most Carried 22 | 3 15 15 15 15 19 22 22 Average Carried 13 | 1 8 14 14 14 13 18 9 Final Capacity 35 | 8 15 15 15 15 35 35 5 Final Carried 21 | 1 15 15 15 13 19 21 5 Class Distribution -------------------- 48% | Mutant 30% | Hauler-Mutant 19% | Scavenger-Mutant Dominant Class ---------------- Mutant | -10/Materials Mutant | -10/Mines Scavenger-Mutant | -9/Materials Mutant | -9/Mines Hauler-Mutant | -9/Exiles Hauler-Mutant | -8/Mines Mutant | -8/Materials Resources | -11 -10 -10 -9 -9 -9 -8 -8 ----------- Run | Yrd Mat Min Mat Min Exi Min Mat Matter Collected 1572 | 173 241 267 183 224 53 249 182 Remotely . | . . . . . . . . Salvage Created 2095 | . 288 59 599 237 . 455 457 Parts 164 | . 36 14 44 12 . 31 27 Haulers Intercepted 5 | . 1 . 3 . . . 1 Recyclers Shooed 4 | . . 1 1 1 . . 1 Parts Field Recycled . | . . . . . . . . Retrieved Matter . | . . . . . . . . Parts Self-Destructed . | . . . . . . . . Prevented . | . . . . . . . . Kills | -11 -10 -10 -9 -9 -9 -8 -8 ------- Run | Yrd Mat Min Mat Min Exi Min Mat Combat Hostiles Destroyed 47 | . 8 4 8 2 . 15 10 Guns 22 | . . 1 1 2 . 15 3 AOE 25 | . 8 3 7 . . . 7 Classes Destroyed 12 | . 7 . 3 1 . . 1 Worker 10 | . 3 . 1 2 . 3 1 Builder 7 | . 1 1 2 . . . 3 Tunneler 6 | . 2 . 1 2 . 1 . Hauler 5 | . 1 . 3 . . . 1 Recycler 4 | . . . 2 2 . . . Operator 1 | . . . 1 . . . . Watcher 6 | . 3 . 3 . . . . Swarmer 23 | . 6 3 2 . . 12 . Grunt 18 | . 2 1 5 . . 3 7 Duelist 3 | . . . . . . . 3 Sentry 1 | . . . 1 . . . . Demolisher 2 | . . . . 2 . . . Best Kill Streak 10 | . 4 6 10 5 . 6 6 Combat Bots Only 7 | . 3 3 7 2 . 6 4 Max Kills in Single Turn 3 | . 3 2 3 1 . 1 3 Gunslinging . | . . . . . . . . Exploded 3 | . 3 2 3 . . . 2 Melee . | . . . . . . . . Uniques/NPCs Destroyed . | . . . . . . . . Combat | -11 -10 -10 -9 -9 -9 -8 -8 -------- Run | Yrd Mat Min Mat Min Exi Min Mat Hostile Shots Fired 257 | . 9 5 10 26 . 50 157 Missed 60 | . 6 1 3 1 . 5 44 Damage Taken 3800 | . 75 164 167 1008 . 454 1932 Core 700 | . 24 6 26 229 . 36 379 Absorbed by Shields . | . . . . . . . . Redirected to Shielding 52 | . . . . . . . 52 Regen/Repaired (Parts) 61 | . . . . . . . 61 Core Remaining (%) 71 | 100 . 88 . . . 27 . Volleys Fired 243 | . 43 16 76 21 . 41 46 Largest 2 | . 2 1 1 2 . 2 2 Hottest 121 | . 60 40 56 79 . 101 121 Shots Fired 300 | . 45 16 76 30 . 71 62 Gun 252 | . 38 4 68 22 . 71 49 Cannon . | . . . . . . . . Launcher 48 | . 7 12 8 8 . . 13 Special . | . . . . . . . . Kinetic 46 | . 4 . . 13 . 5 24 Thermal 179 | . 34 4 68 9 . 39 25 Explosive 41 | . 7 12 8 8 . . 6 Electromagnetic 34 | . . . . . . 27 7 Robot Hit Streak 11 | . 5 5 7 11 . 8 8 Robot Miss Streak 7 | . 2 2 4 1 . 7 4 Penetration Max . | . . . . . . . . Secondary Targets 6 | . . . . 1 . 4 1 Max Gunslinging Chain 1 | . . . . 1 . 1 1 Shots Hit Robots 176 | . 26 3 43 25 . 44 35 Core Hits 133 | . 27 8 27 17 . 23 31 Critical Kills . | . . . . . . . . Critical Parts Destroyed . | . . . . . . . . Critical Strikes 9 | . . . 3 1 . 3 2 Burn 7 | . . . 3 1 . 2 1 Corrupt 1 | . . . . . . 1 . Sever 1 | . . . . . . . 1 Melee Attacks 6 | . . . . . . . 6 Impact . | . . . . . . . . Slashing 6 | . . . . . . . 6 Piercing . | . . . . . . . . Sneak Attacks . | . . . . . . . . Combat Hostiles . | . . . . . . . . Follow-up Attacks . | . . . . . . . . Damage Inflicted 5199 | . 766 243 1453 471 . 722 1544 Guns 2486 | . 281 10 612 286 . 722 575 Cannons . | . . . . . . . . Explosions 2656 | . 485 233 841 185 . . 912 Melee 57 | . . . . . . . 57 Ramming . | . . . . . . . . Kinetic 534 | . 21 . . 150 . 44 319 Thermal 1687 | . 260 10 612 136 . 413 256 Explosive 2339 | . 485 233 841 185 . . 595 Electromagnetic 582 | . . . . . . 265 317 Impact . | . . . . . . . . Slashing 57 | . . . . . . . 57 Piercing . | . . . . . . . . Highest Corruption 9 | . . . . . . . 9 Average Corruption 9 | . . . . . . . 9 Corruption Purged . | . . . . . . . . Corruption Blocked . | . . . . . . . . Effects 1 | . . . . . . . 1 Matter Fused 1 | . . . . . . . 1 Overload Shots . | . . . . . . . . Overflow Damage 77 | . 14 . 47 . . . 16 Projectiles . | . . . . . . . . Explosions 77 | . 14 . 47 . . . 16 Melee . | . . . . . . . . Knockbacks . | . . . . . . . . Impact . | . . . . . . . . Kinetic . | . . . . . . . . Secondary . | . . . . . . . . Self-Inflicted Damage 324 | . 53 124 44 2 . . 101 Shots 14 | . 2 4 2 1 . . 5 Rammed . | . . . . . . . . Targets Rammed . | . . . . . . . . Kicked . | . . . . . . . . Crushed . | . . . . . . . . Highest Temperature 379 | . 20 4 110 80 . 352 379 Average Temperature 85 | . 15 4 34 25 . 109 133 Received Heat Transfer 1314 | . . 18 90 . . 99 1107 Effects 6 | . . . . . . 1 5 Energy Bleed 1 | . . . . . . . 1 Interference 2 | . . . . . . . 2 Matter Decay 2 | . . . . . . 1 1 Short Circuit 1 | . . . . . . . 1 Siege Activations . | . . . . . . . . Robots Corrupted . | . . . . . . . . Combat Hostiles . | . . . . . . . . Parts Fried 1 | . . . . . . 1 . Impact Corruptions . | . . . . . . . . Robots Melted . | . . . . . . . . Combat Hostiles . | . . . . . . . . Parts Melted 8 | . 1 . 4 1 . 1 1 Heat Transferred 4436 | . 600 25 1776 370 . 1036 629 Parts Sabotaged . | . . . . . . . . Parts Stolen . | . . . . . . . . Parts Stripped . | . . . . . . . . Power Chain Reactions 2 | . . . . . . . 2 Alert | -11 -10 -10 -9 -9 -9 -8 -8 ------- Run | Yrd Mat Min Mat Min Exi Min Mat Peak Influence 505 | . 283 202 505 130 . 130 219 Initial 130 | . . 54 2 130 . . 7 Average 79 | . 156 52 309 83 . 52 31 Maximum Alert Level 2 | . 1 1 2 . . . 1 Low Security (%) 88 | 100 55 88 34 100 . 100 99 Level 1 7 | . 44 11 22 . . . . Level 2 3 | . . . 43 . . . . Level 3 . | . . . . . . . . Level 4 . | . . . . . . . . Level 5 . | . . . . . . . . High Security . | . . . . . . . . Max Security . | . . . . . . . . Squads Dispatched 9 | . 3 . 2 . . . 4 Investigation 2 | . 1 . . . . . 1 Extermination . | . . . . . . . . Reinforcement 7 | . 2 . 2 . . . 3 Assault . | . . . . . . . . Garrison . | . . . . . . . . Intercept . | . . . . . . . . Searches Triggered . | . . . . . . . . Construction Impeded 2 | . . . 1 . . . 1 Haulers Reinforced . | . . . . . . . . Active Scanning Responses . | . . . . . . . . Cargo Convoy Interrupts . | . . . . . . . . Stealth | -11 -10 -10 -9 -9 -9 -8 -8 --------- Run | Yrd Mat Min Mat Min Exi Min Mat Distress Signals 3 | . . . 2 . . . 1 Communications Jammed . | . . . . . . . . Distress Signals . | . . . . . . . . Times Spotted 88 | . 17 3 26 2 . 15 25 Peak Tracking Total 6 | . 3 2 6 2 . 4 6 Tactical Retreats 6 | . . . . . . . 6 Traps | -11 -10 -10 -9 -9 -9 -8 -8 ------- Run | Yrd Mat Min Mat Min Exi Min Mat Traps Triggered 2 | . 2 . . . . . . Indirectly . | . . . . . . . . Trap Hack Attempts . | . . . . . . . . Triggered . | . . . . . . . . Disarmed . | . . . . . . . . Reprogrammed . | . . . . . . . . Reused . | . . . . . . . . Traps Reconfigurated 6 | . . . . . . . 6 Traps Extracted . | . . . . . . . . Installed . | . . . . . . . . Triggered . | . . . . . . . . Machines | -11 -10 -10 -9 -9 -9 -8 -8 ---------- Run | Yrd Mat Min Mat Min Exi Min Mat Machines Disabled 7 | . . . 5 . . . 2 Max in Single Turn 2 | . . . 2 . . . 1 Machines Repaired . | . . . . . . . . Machines Dismantled . | . . . . . . . . Machines Sabotaged . | . . . . . . . . Overloaded Fab Kills . | . . . . . . . . Hacking | -11 -10 -10 -9 -9 -9 -8 -8 --------- Run | Yrd Mat Min Mat Min Exi Min Mat Machines Accessed 11 | . 3 . 5 1 . . 2 Terminals 8 | . 3 . 4 . . . 1 Fabricators . | . . . . . . . . Repair Stations 1 | . . . . . . . 1 Recycling Units . | . . . . . . . . Scanalyzers 1 | . . . 1 . . . . Garrison Access . | . . . . . . . . Total Hacks 24 | . 4 . 14 1 . . 5 Successful 14 | . . . 11 1 . . 2 Failed 10 | . 4 . 3 . . . 3 Catastrophic 2 | . . . 1 . . . 1 Database Lockouts . | . . . . . . . . Manual 1 | . . . . . 1 . . Terminals 15 | . 4 . 9 . . . 2 Fabricators . | . . . . . . . . Repair Stations 3 | . . . . . . . 3 Recycling Units . | . . . . . . . . Scanalyzers 5 | . . . 5 . . . . Garrison Access . | . . . . . . . . Terminal Hacks 7 | . . . 6 1 . . . Prototype ID Bank 1 | . . . 1 . . . . Open Door 1 | . . . . 1 . . . Branch Access Points 1 | . . . 1 . . . . Terminal Index 1 | . . . 1 . . . . Alert Level 1 | . . . 1 . . . . Unreport Threat 1 | . . . 1 . . . . Locate Traps 1 | . . . 1 . . . . Fabricator Hacks . | . . . . . . . . Repair Station Hacks 2 | . . . . . . . 2 Scan Component 1 | . . . . . . . 1 Repair 1 | . . . . . . . 1 Recycling Unit Hacks . | . . . . . . . . Scanalyzer 5 | . . . 5 . . . . Insert Component 2 | . . . 2 . . . . Analyze 3 | . . . 3 . . . . Garrison Access Hacks . | . . . . . . . . Unauthorized Hacks . | . . . . . . . . Terminals . | . . . . . . . . Fabricators . | . . . . . . . . Repair Stations . | . . . . . . . . Recycling Units . | . . . . . . . . Scanalyzers . | . . . . . . . . Garrison Access . | . . . . . . . . Data Cores Recovered . | . . . . . . . . Used . | . . . . . . . . Hacking Detections 7 | . 2 . 3 . . . 2 Full Trace Events . | . . . . . . . . Feedback Events . | . . . . . . . . Feedback Blocked . | . . . . . . . . Robot Schematics Acquired . | . . . . . . . . Robots Built . | . . . . . . . . Authchips . | . . . . . . . . Time . | . . . . . . . . Total Robot Build Rating . | . . . . . . . . Part Schematics Acquired 2 | . . . 2 . . . . Parts Built . | . . . . . . . . Authchips . | . . . . . . . . Time . | . . . . . . . . Total Part Build Rating . | . . . . . . . . Parts Repaired 1 | . . . . . . . 1 Time 38 | . . . . . . . 38 Parts Recycled . | . . . . . . . . Recycled Matter . | . . . . . . . . Retrieved Matter . | . . . . . . . . Retrieved Components . | . . . . . . . . Parts Scanalyzed 2 | . . . 2 . . . . Part Schematics Acquired 2 | . . . 2 . . . . Parts Damaged . | . . . . . . . . Bothacking | -11 -10 -10 -9 -9 -9 -8 -8 ------------ Run | Yrd Mat Min Mat Min Exi Min Mat Used RIF Installer . | . . . . . . . . Robots Hacked . | . . . . . . . . Non-combat . | . . . . . . . . Combat . | . . . . . . . . Robot Hacks Applied . | . . . . . . . . Relay Couplers Released . | . . . . . . . . Fabnet Peak Effective % . | . . . . . . . . Robots Rewired . | . . . . . . . . Allies Hacked . | . . . . . . . . Hacks Repelled . | . . . . . . . . Allies | -11 -10 -10 -9 -9 -9 -8 -8 -------- Run | Yrd Mat Min Mat Min Exi Min Mat Total Allies 3 | . . 3 . . . . . Largest Group 3 | . . 3 3 1 . . . Highest-Rated Group 40 | . . 40 40 13 . . . Highest-Rated Ally 16 | . . 16 16 13 . . . Total Orders 110 | . . . . 34 . 38 38 STAY 1 | . . . . . . 1 . ROAM 2 | . . . . 2 . . . EXPLORE 38 | . . . . 8 . 15 15 RETURN 69 | . . . . 24 . 22 23 Ally Attacks 45 | . . 4 39 2 . . . Total Damage 487 | . . 51 402 34 . . . Kills 10 | . . 1 9 . . . . Allies Corrupted . | . . . . . . . . Allies Melted . | . . . . . . . . Intel | -11 -10 -10 -9 -9 -9 -8 -8 ------- Run | Yrd Mat Min Mat Min Exi Min Mat Robot Analysis Total . | . . . . . . . . Derelict Logs Recovered 3 | . . 2 . 1 . . . Drone Launches 92 | . . . . 23 . 33 36 Drone Recoveries 86 | . . . . 23 . 30 33 Exploration | -11 -10 -10 -9 -9 -9 -8 -8 ------------- Run | Yrd Mat Min Mat Min Exi Min Mat Turns Passed 7351 | 38 478 1439 617 752 427 1474 2126 Spaces Moved 3657 | 34 395 1292 449 289 304 377 517 Core 79 | 6 . . . 23 . . 50 Treads . | . . . . . . . . Legs . | . . . . . . . . Wheels 3553 | 28 395 1292 449 266 304 377 442 Hover 25 | . . . . . . . 25 Flight . | . . . . . . . . Fastest Speed 50 | 50 80 95 95 95 95 230 50 Average Speed 122 | 74 88 95 96 150 131 247 132 Slowest Speed 700 | 80 95 95 110 700 230 410 345 Overloaded Moves . | . . . . . . . . Propulsion Burnouts . | . . . . . . . . Robots Hopped . | . . . . . . . . Cave-ins Triggered . | . . . . . . . . Exploration Rate (%) 64 | 3 63 102 43 99 60 93 49 Regions Visited 7 Branch Regions 4 Pre-discovered Areas . | . . . . . . . . Known Exits Taken 5 | . . 1 1 1 1 1 . Unknown Exits Taken 2 | 1 1 . . . . . . Scrap Searched 3 | . . 2 . . . 1 . Spaces Dug 86 | . . 78 5 . . . 3 Terrain Destroyed 300 | . 48 118 57 46 . . 31 Melee 3 | . . . . . . . 3 Projectile . | . . . . . . . . AOE 297 | . 48 118 57 46 . . 28 Terrain Rammed . | . . . . . . . . Walls Destroyed . | . . . . . . . . Machines Disabled . | . . . . . . . . Actions | -11 -10 -10 -9 -9 -9 -8 -8 --------- Run | Yrd Mat Min Mat Min Exi Min Mat Total 6223 | 46 480 1491 559 577 337 845 1888 Wait 2111 | . 5 166 11 250 1 403 1275 Move 3650 | 33 394 1291 448 288 303 376 517 Hop . | . . . . . . . . Pick Up 81 | 7 22 7 6 5 19 8 7 Fast Attach 7 | . . . 1 . 1 . 5 Attach 35 | 6 3 2 4 6 2 4 8 Detach 7 | . . . 1 . 3 . 3 Swap 48 | . 7 1 6 6 . 10 18 Drop 35 | . 6 8 6 1 8 3 3 Fire 243 | . 43 16 76 21 . 41 46 Melee 6 | . . . . . . . 6 Ram . | . . . . . . . . Kick . | . . . . . . . . Crush . | . . . . . . . . Escape Stasis . | . . . . . . . . Rewire . | . . . . . . . . Trap . | . . . . . . . . Miscellaneous . | . . . . . . . . Route ------- -11/Scrapyard -10/Materials (discovered 3 exits: *Mat x2 / [*Min]) -10/Mines (discovered 3 exits: *Mat x2 / *Sub) -9/Materials (discovered 4 exits: *Mat x2 / *Min x2) -9/Mines (discovered 3 exits: *Mat x2 / *Exi) -9/Exiles -8/Mines (discovered 2 exits: *Mat x2) -8/Materials (discovered 3 exits: [*Fac x2] / *Sto) History --------- Turn | Location | Event 24 | -11/Scrapyard | Discovered new exit (range 15) 39 | -11/Scrapyard | Entered Materials 113 | -10/Materials | Discovered new exit (range 8) 191 | -10/Materials | Discovered new exit (range 16) 311 | -10/Materials | Build established: Mutant 380 | -10/Materials | Discovered new exit (range 8) 517 | -10/Materials | Entered Mines 553 | -10/Mines | Discovered new exit (range 12) 564 | -10/Mines | Assisted by bots powering up and referring to "LRC-V3" 583 | -10/Mines | Learned 2 Materials zone layouts 819 | -10/Mines | Received a Rocket Launcher from a helpful Derelict 992 | -10/Mines | Found a damaged Exp. Sensor Array with a note attached 996 | -10/Mines | Found Prototype Device 1013 | -10/Mines | Discovered new exit (range 16) 1026 | -10/Mines | Identified exit to Materials 1264 | -10/Mines | Joined a pair of Derelicts in attacking an 0b10 outpost 1370 | -10/Mines | Discovered new exit (range 9) 1377 | -10/Mines | Identified exit to Subcaves 1580 | -10/Mines | Build established: Scavenger-Mutant 1956 | -10/Mines | Entered Materials 1956 | -9/Materials | Accompanied by 3 allies 1956 | -9/Materials | Evolved 2 slots: Utility x2 1957 | -9/Materials | Identified exit to Materials 1957 | -9/Materials | Identified Exp. Sensor Array 2200 | -9/Materials | Destroyed 7 combat bots 2344 | -9/Materials | Identified exit to Mines 2462 | -9/Materials | Discovered exit to Materials (range 7) 2573 | -9/Materials | Entered Mines 2573 | -9/Mines | Accompanied by 1 ally 2581 | -9/Mines | Found the Drone Emporium 2588 | -9/Mines | Found Prototype Device 2589 | -9/Mines | Identified Sensor Drone Bay 2676 | -9/Mines | Discovered exit to Materials (range 26) 2722 | -9/Mines | Discovered exit to Materials (range 48) 2800 | -9/Mines | Build established: Mutant 2870 | -9/Mines | Deemed a non-threat by the Exiles lab entrance 2870 | -9/Mines | Discovered new exit (range 5) 2873 | -9/Mines | Identified exit to Exiles 2977 | -9/Mines | Found a hidden stash of uninstalled traps 3019 | -9/Mines | Assembled infested the area 3082 | -9/Mines | Core integrity fell below 50% 3124 | -9/Mines | Lost 6 parts (1p2n3w) 3136 | -9/Mines | Met 8R-AWN 3325 | -9/Mines | Entered Exiles 3350 | -9/Exiles | Welcomed by 8R-AWN 3365 | -9/Exiles | Met EX-HEX 3394 | -9/Exiles | Met EX-BIN 3408 | -9/Exiles | Aligned with FarCom system 3409 | -9/Exiles | Given EX-Vault access code 3431 | -9/Exiles | Opened EX-Vault 3437 | -9/Exiles | Found Prototype Device 3438 | -9/Exiles | Identified Trap Reconfigurator 3443 | -9/Exiles | Found Prototype Processor 3443 | -9/Exiles | Identified Modified TNC 3449 | -9/Exiles | Found Prototype Ballistic Gun 3472 | -9/Exiles | Warned to stay clear of 0b10 Research branches 3496 | -9/Exiles | Met EX-DEC 3726 | -9/Exiles | Discovered new exit (range 14) 3749 | -9/Exiles | Identified exit to Mines 3752 | -9/Exiles | Stole three prototypes: Modified TNC, Trap Reconfigurator, XL Autogun Array 3752 | -9/Exiles | Entered Mines 3830 | -8/Mines | Build established: Hauler-Mutant 4539 | -8/Mines | Discovered exit to Materials (range 63) 5199 | -8/Mines | Discovered exit to Materials (range 32) 5226 | -8/Mines | Entered Materials 5226 | -8/Materials | Evolved 2 slots: Utility x2 5227 | -8/Materials | Identified exit to Storage 5646 | -8/Materials | Discovered new exit (range 59) 5739 | -8/Materials | Repaired Missile Launcher? 5911 | -8/Materials | Lost 13 parts (1p2n6u4w) 6111 | -8/Materials | Build established: Mutant 6252 | -8/Materials | Discovered new exit (range 6) 7340 | -8/Materials | Core integrity fell below 50% 7352 | -8/Materials | Self-destructed Last Messages --------------- 07266_ Arm. Wheel destroyed. 07267_ K-01 Serf collects debris. 07301_ Broken Enh. Autogun destroyed. 07308_ G-47 Trooper misfires. 07311_ Acquired Imp. Hover Unit. 07319_ Acquired 3 matter. 07324_ Acquired Shock Bomb Launcher. 07335_ Door malfunctions. 07341_ Imp. Hover Unit destroyed. 07342_ Acquired Corrupted Particle Charger. 07342_ Integrated Corrupted Particle Charger (+9). 07342_ Core Shielding destroyed. 07343_ System corrupted: Matter fused (-5). 07344_ Critical hit (Burn: +37). 07346_ Particle Charger destroyed. 07347_ W-25 Informer sends out distress signal. 07349_ Shock Bomb Launcher destroyed. 07349_ Destroyed Shock Bomb Launcher. 07350_ G-47 Trooper misfires. Map ----- +----------------------------------------------------+ | ####???????# ####+######??????????????????????? | | #???????# # #??????????????????????? | | #???????# # #??????????????????????? | | " #???????# # #??????????????????????? | | " #???????# + #??????????????????????? | | " #???????# # #??????????????????????? | | #???????### # #??????????????????????? | | #?????????# # #??????????????????????? | | #?????????# # #?########?????????????? | | #?????????# #########+#?# """ #?????????????? | | ####?????????# #???????# #?# """ #?????????????? | | ?????????????# ######### #?# """ #?????????????? | | ??########???# # # #?# #?????????????? | | ??# [ #???# # #%#?# #??###########? | | ??# #???# # # #?# #??# #? | | ### ????# # """ # ######+###### #? | | # """" #???# # """ # w # #? | | # """" #???# # """ ! +% # #? | | + """" #???# # # g + #? | | ########???# # """ ###/####### # #? | | # [#???# # """ ## wg#????# # #? | | # #???# # """ ##gg[#????# # #? | | # " " ##### # ## %#????# ##/######### | | !+ "R" + ##########[= ##???# #?# # | | #= """ ##### #??????### !##???# #?# # | | # #???# #???????##@! ##???# ### # | | ########???# #???????## ##???# # """ # | | #?####?????# #???????########### + """ # | | ## #?????# #????????## ## # # """ # | | # #?????# #########?##### # #### # # | | # #?????# ## #?????# # ##?# # """ # | | # ####### ## #?????# # T#?# # """ # | | # ## #?????# # ##?# # """ # | | # ########## #?????# # #??# # # | | #######?????????# #?????# # #??# ####### | | #?????????# ########/## ####+######? | | """" #?????????#####+## # #? | | """" #?????????????# # #? | | """" #?????????????# # """ #? | | #?????????????# # """"" #? | | [ #?????????????# # """"" #? | | #?????????????# # """"" #? | | #??????????# # ####### # """ #? | | #??????????# + #????#T + = #? | | #######??????????# #####+#####?## ###########? | | #???????????????###?# #??# #??????????? | | #???????????????????# #??# #??????????? | | #???????????????????# """ #??# #??????????? | | #???????????????????# """""#??# +??????????? | | #???????????????????# """""#??# < #??????????? | +----------------------------------------------------+ Best States ------------- Heat Dissipation 31 Energy Generation 14 Energy Capacity 280 Matter Stores 300 Matter Capacity 300 Sight Range 16 Robot Scan Range 20 Terrain Scan Density 10 Armor Coverage 375 Core Shielding 20 Utility Shielding 33 Evasion (%) 53 Targeting Accuracy 5 Item Schematics ----------------- Hrd. Light Armor Plating | -9/Materials | Scanalyzed Core Shielding | -9/Materials | Scanalyzed Robot Schematics ------------------ None Fabricated ------------ Nothing Alien Tech Used ----------------- None Achievements -------------- None Challenges ------------ None Game ------ Seed LinearExplosiveFlightbrick Manual? 0 Play Time 01:33:46 Cumulative 68.7 hours Start 2024.03.25 @ 17:33:22 End 2024.03.25 @ 19:30:20 Sessions 1 Manual Loads 0 Difficulty Rogue Special Mode None Game No. 61 Rogue 59 Adventurer 0 Explorer 2 Win Type - Total 0 Types 0/0/0/0/0/0/0/0/0 Lore% 21 Gallery% 34 Achievement% 22 Wizard Run 0 Options --------- Layout 1 ASCII 0 Keyboard 0 Movement Mouse Keybinds 0 Fullscreen 2 Font 48/Tamsyn Map View 50x35 Zoom Use 0% Tactical HUD 1 Map Filters NONE Filters NONE Steam 1 RUN: af6454c4-f389-4235-897f-e2aa08879be9